Cogmind - Beta 16.1 @@@ ROGUE MODE // 2026.02.14 @ 16:40:12 Player: f3-rnm Result: Escaped! Performance ------------- Evolutions (9) 4500 Regions Visited (28) 5600 Robots Destroyed (236) 1180 Value Destroyed (11170) 11170 Prototype IDs (42) 840 Alien Tech Used (2) 400 Bonus (7418) 7418 TOTAL SCORE: 31108 Bonus ------- High Alert Combat Kills 1476 Follower Combat Kills 4163 Awakened Behemoth Slayer 1000 Network Hubs Disabled 200 Met Imprinter 300 Was Imprinted 300 Met Zhirov 300 Built Enhanced Grunts 300 A7 Reached Mainframe 300 Met R17 at Cetus 500 Win 3000 Friendly Fire -4421 Cogmind --------- Core Integrity 902/1600 Matter 21/300 Energy 99/100 System Corruption 14% Temperature Cool (0) Movement Core (200) Ox3 Location To Epsilon Eridani Parts ------- > --- POWER (2) -------- (None) > --- PROPULSION (8) --- (None) > --- UTILITY (8) ------ (None) > --- WEAPON (7) ------- Fusion Bomb Launcher > --- INVENTORY (5) ---- Zionite Biocell (600) Long-range Proton Cannon Fusion Bomb Launcher Peak State ------------ > --- POWER ------------ Particle Reactor Quantum Reactor > --- PROPULSION ------- Enhanced Armored Leg Zionite Composite Leg II Zionite Composite Leg II Zionite Composite Leg II Zionite Composite Leg II Biometal Leg > --- UTILITY ---------- Advanced Heat Sink Advanced Heat Sink High-capacity Storage Unit Improved Signal Interpreter Core Analyzer Advanced Reaction Control System Centrium Medium Armor Plating Graphene Brace > --- WEAPON ----------- Heavy Quantum Rifle Coil Gun KE Penetrator Railgun Railgun Advanced KE Penetrator CR-A16's Behemoth Slayer > --- INVENTORY -------- Particle Reactor Zionite Composite Leg II Zionite Composite Leg II Zionite Biocell Compact Matter Pod Advanced Sensor Array Improved Weapon Cycler Improved Cloaking Device Zionite Weapon Casing Centrium Medium Armor Plating Centrium Medium Armor Plating Advanced Force Field Long-range Tractor Beam Transdimensional Reconstructor Cooled Plasma Cannon Precision Grenade Launcher [Rating: 171] Favorites ----------- Power Quantum Reactor Engine Light Deuterium Engine Power Core Enhanced Fission Core Reactor Quantum Reactor Propulsion Zionite Composite Leg II Treads Medium Treads Leg Zionite Composite Leg II Wheel Wheel Hover Unit Aerolev Unit Flight Unit Impulse Thruster Array Utility High-capacity Storage Unit Device Improved Cooling System Storage High-capacity Storage Unit Processor Core Analyzer Hackware Hacking Suite Protection Centrium Medium Armor Plating Weapon Advanced KE Penetrator Energy Gun Gatling Laser Energy Cannon Cooled Particle Cannon Ballistic Gun Advanced KE Penetrator Ballistic Cannon Bore Cannon Launcher Precision Grenade Launcher Special Weapon Remote Datajack Impact Weapon Powered Hammer Slashing Weapon Scythe Piercing Weapon CR-A16's Behemoth Slayer Build | -11 -10 -9 -9 -8 -7 -7 -7 -7 -7 -7 -6 -6 -6 -6 -5 -5 -5 -5 -4 -4 -4 -4 -4 -4 -3 -2 -2 -1 ------- Run | Yrd Mat Mat Min Mat Fac Was Fac Low Low Zio Pro Fac Low Low Fac Upp Upp Zhi Pro Fac Ext Cet Arc Hub Res Res Tes Acc Slots Evolved 18 | . . 2 . 2 2 . . . . . . 2 . . 2 . . . . 2 . . . . 2 2 . 2 Power 1 | . . . . . . . . . . . . . . . . . . . . . . . . . 1 . . . Propulsion 6 | . . . . . 2 . . . . . . . . . 1 . . . . . . . . . . 1 . 2 Utility 6 | . . . . 1 . . . . . . . 2 . . 1 . . . . 1 . . . . . 1 . . Weapon 5 | . . 2 . 1 . . . . . . . . . . . . . . . 1 . . . . 1 . . . Parts Attached 230 | 6 3 12 1 14 31 8 6 1 4 1 2 10 5 4 7 3 1 4 9 10 11 9 14 6 17 6 16 9 Power 18 | 1 1 1 . 2 1 . . . 1 . . . 1 1 3 . . . . . . 2 . . 1 . 3 . Engine 6 | 1 1 1 . . . . . . 1 . . . . 1 1 . . . . . . . . . . . . . Core 7 | . . . . 2 1 . . . . . . . 1 . 2 . . . . . . 1 . . . . . . Reactor 5 | . . . . . . . . . . . . . . . . . . . . . . 1 . . 1 . 3 . Propulsion 46 | 2 . 4 . 2 8 1 2 . . . . 4 1 . . 1 . 1 2 . 3 1 3 1 . 2 4 4 Treads 17 | 2 . 2 . 2 5 1 1 . . . . . . . . . . . . . . . . . . . . 4 Leg 23 | . . . . . . . 1 . . . . 4 1 . . 1 . 1 2 . 3 1 3 1 . 2 3 . Wheel 4 | . . 2 . . 2 . . . . . . . . . . . . . . . . . . . . . . . Hover 1 | . . . . . 1 . . . . . . . . . . . . . . . . . . . . . . . Flight 1 | . . . . . . . . . . . . . . . . . . . . . . . . . . . 1 . Utility 68 | 1 2 . . 3 8 3 2 1 . . . 4 1 1 2 1 1 3 3 4 4 3 7 3 6 1 3 1 Device 35 | . 1 . . 2 2 2 1 1 . . . 1 1 . 2 1 1 1 2 . 1 2 5 2 3 1 2 1 Storage 9 | 1 1 . . 1 3 . . . . . . . . . . . . 1 . . 1 . . . 1 . . . Processor 16 | . . . . . 3 1 1 . . . . 3 . . . . . . 1 4 1 . . . 1 . 1 . Hackware 1 | . . . . . . . . . . . . . . . . . . . . . . . . . 1 . . . Protection 7 | . . . . . . . . . . . . . . 1 . . . 1 . . 1 1 2 1 . . . . Artifact . | . . . . . . . . . . . . . . . . . . . . . . . . . . . . . Weapon 98 | 2 . 7 1 7 14 4 2 . 3 1 2 2 2 2 2 1 . . 4 6 4 3 4 2 10 3 6 4 Energy Gun 27 | . . 4 . 4 . . . . . . . 1 . . 2 1 . . 2 1 . . 2 2 4 . 4 . Energy Cannon 4 | . . . . . 1 . . . . . . . . . . . . . . 1 . . . . . . . 2 Ballistic Gun 49 | 2 . 3 1 2 5 4 2 . . . 2 1 2 2 . . . . 1 2 4 3 2 . 6 3 2 . Ballistic Cannon 4 | . . . . 1 . . . . 3 . . . . . . . . . . . . . . . . . . . Launcher 3 | . . . . . . . . . . 1 . . . . . . . . . . . . . . . . . 2 Special Weapon 2 | . . . . . 1 . . . . . . . . . . . . . . 1 . . . . . . . . Impact Weapon 5 | . . . . . 5 . . . . . . . . . . . . . . . . . . . . . . . Slashing Weapon 1 | . . . . . 1 . . . . . . . . . . . . . . . . . . . . . . . Piercing Weapon 3 | . . . . . 1 . . . . . . . . . . . . . 1 1 . . . . . . . . Special Melee Weapon . | . . . . . . . . . . . . . . . . . . . . . . . . . . . . . Unidentified Prototypes 33 | . . . . 1 2 1 1 . . 1 . 2 1 . 2 . . 4 3 2 1 3 3 2 2 . 2 . Corrupted Parts 5 | . . . . . 1 . . . . . . . . . . . . . . 1 . . 2 . . . 1 . System Corruption 31 | . . . . . 6 . . . . . . . . . . . . . . 3 . . 17 . . . 5 . Parts Lost 75 | . 1 6 . 8 1 . 3 1 3 . . 3 2 5 . . . . 5 . 5 . . 2 4 5 16 5 Power 8 | . 1 1 . 1 . . . . 1 . . 1 . 1 . . . . . . . . . . . . 2 . Propulsion 16 | . . 2 . 1 . . 2 . . . . . 1 . . . . . 1 . . . . . . . 5 4 Utility 14 | . . . . 2 . . . 1 . . . 1 . 1 . . . . 1 . 2 . . 1 2 1 1 1 Weapon 37 | . . 3 . 4 1 . 1 . 2 . . 1 1 3 . . . . 3 . 3 . . 1 2 4 8 . Highest Loss Streak 6 | . 1 2 . 5 1 . 2 1 3 . . 1 2 3 . . . . 2 . 5 . . 2 2 4 6 5 To Critical Strikes 1 | . . . . . . . . . . . . . . . . . . . . . . . . . 1 . . . Average Backups 16 | 1 3 8 15 20 5 12 18 18 17 17 18 18 17 16 18 19 19 19 19 19 19 18 19 19 18 19 16 3 Power . | . 1 2 2 2 . . . 1 . . . . . 1 1 1 1 1 1 1 1 . . 1 . 1 . . Propulsion 2 | . 1 2 5 8 1 2 2 2 2 2 2 2 3 3 3 3 3 3 3 3 2 1 2 2 2 1 2 . Utility 6 | . . 2 4 5 1 4 5 6 6 6 6 6 5 5 7 8 10 9 10 10 10 9 9 9 10 10 10 1 Weapon 5 | . . 1 4 4 1 5 8 8 7 8 9 8 7 5 4 4 4 4 3 2 3 5 6 6 5 5 2 1 Tool/Special . | . . . . . . . . . . . . . . . . . . . . . . . . . . . . . Unused Backups 50 | . . 3 . 14 3 2 . . . . . 2 2 . 4 . . 2 . 1 3 1 4 . 1 1 5 2 Power 4 | . . 1 . 2 . . . . . . . . . . . . . . . . . . . . . . 1 . Propulsion 11 | . . . . 4 . . . . . . . . . . 2 . . 2 . . . . 1 . 1 1 . . Utility 22 | . . 1 . 5 2 . . . . . . 1 1 . 2 . . . . 1 1 1 2 . . . 3 2 Weapon 13 | . . 1 . 3 1 2 . . . . . 1 1 . . . . . . . 2 . 1 . . . 1 . Tool/Special . | . . . . . . . . . . . . . . . . . . . . . . . . . . . . . Average Slot Usage (%) 86 | . 95 95 100 98 71 98 91 91 90 55 91 87 96 95 92 94 93 65 89 92 94 99 99 99 99 99 80 16 Engine 1 | . 13 10 11 2 . . . . . 7 7 1 . 3 . . . . . . . . . . . . . . Core 2 | . . . . 6 3 7 7 7 6 . . . 3 2 4 5 5 5 5 5 5 . . . . . . . Reactor 1 | . . . . . . . . . . . . . . . . . . . . . . 4 5 5 9 8 6 . Treads 7 | . 28 13 22 17 18 13 10 15 15 15 15 6 . . . . . . . . . . . . . . . 13 Leg 14 | . . . . . . . 2 7 7 7 7 16 25 26 23 23 23 23 22 21 23 26 25 25 23 25 22 . Wheel 1 | . . 8 . . 6 15 8 . . . . . . . . . . . . . . . . . . . . . Device 9 | . 10 11 11 17 3 4 6 6 7 7 7 5 6 6 10 12 16 16 12 14 13 10 10 13 13 16 14 2 Storage 5 | . 14 11 11 8 2 7 7 7 7 7 7 6 6 6 5 5 5 5 5 5 5 5 5 5 4 4 3 . Processor 10 | . . . . . 8 10 7 7 7 7 7 17 20 13 11 11 11 11 13 15 17 15 15 11 10 13 6 . Protection 1 | . . . . . . . . . . . . . . 3 5 3 . . . . . 4 3 5 2 . 2 . Energy Gun 5 | . . 18 22 26 . . . . . . . . 3 . 8 12 17 1 13 16 8 . 2 5 10 4 5 . Ballistic Gun 17 | . 28 22 22 17 10 32 37 38 33 . 14 6 10 27 17 15 11 . 8 8 15 29 28 26 21 25 11 . Ballistic Cannon 2 | . . . . . . . . . 3 1 23 17 11 1 . . . . . . . . . . . . . . Impact Weapon 1 | . . . . . 13 4 . . . . . 4 5 . . . . . . . . . . . . . . . Peak Build Rating 171 | 6 9 21 21 34 44 52 58 57 58 54 56 65 70 70 85 89 90 93 96 111 118 136 145 145 159 167 171 96 Average Rating 77 | 4 8 14 21 28 29 44 54 55 54 37 55 60 65 63 83 85 89 69 88 103 110 129 140 142 153 165 137 70 On Entrance 68 | . 6 9 21 21 1 42 52 55 55 52 54 56 63 63 65 85 89 90 93 94 106 117 136 145 127 152 145 2 Avg Prop Armor Cover (%) 14 | . . 4 . . 26 12 8 3 3 5 3 3 3 . . . . . . . . . . . . . . 46 Naked Turns 181 | . . . . 6 78 . . . . . . . . . . . . . . . . . . . . . 60 37 Heaviest Build 132 | 11 29 34 34 102 65 68 68 66 77 77 80 84 84 80 83 82 80 79 80 83 87 105 107 107 132 126 129 12 Greatest Support 240 | 40 40 44 44 45 50 20 98 98 98 98 98 98 65 64 84 91 91 91 104 104 137 141 144 140 132 160 160 240 Greatest Overweight (x) 24 | . . 1 . 2 3 3 3 . . . . 24 2 1 1 . . . . . . . . 1 . . 1 3 Average Overweight (x) . | . . . . 1 . 3 1 . . . . . 1 1 . . . . . . . . . . . . . . Largest Inventory Capacity 25 | 8 15 15 15 25 20 20 20 20 20 20 20 20 20 20 20 20 20 20 20 20 20 20 20 20 20 20 20 5 Average Capacity 18 | 7 14 15 15 24 7 20 20 20 20 20 20 20 20 20 20 20 20 20 20 20 20 20 20 20 20 20 17 5 Most Carried 25 | 2 5 15 15 25 11 16 20 19 18 20 20 20 20 20 20 20 20 20 20 20 20 20 20 20 20 20 20 5 Average Carried 16 | 1 3 8 15 20 5 12 18 18 17 17 19 19 19 18 19 19 20 19 19 19 19 18 19 19 18 19 16 3 Final Capacity 20 | 8 15 15 15 5 20 20 20 20 20 20 20 20 20 20 20 20 20 20 20 20 20 20 20 20 20 20 5 5 Final Carried 20 | 2 5 15 15 5 11 16 19 18 16 20 19 20 19 18 20 20 20 20 20 20 18 20 20 20 20 19 4 3 Class Distribution -------------------- 24% | Messiah-Executioner 20% | Mutant 13% | Gunner 12% | Scavenger-Gunner 9% | Scavenger-Tank 7% | Tank 4% | Scavenger-Executioner Dominant Class ---------------- Mutant | -10/Materials Scavenger-Gunner | -9/Materials Scavenger-Gunner | -9/Mines Scavenger-Gunner | -8/Materials Mutant | -7/Factory Gunner | -7/Waste Derelict-Tank | -7/Factory Tank | -7/Lower Caves Tank | -7/Lower Caves Mutant | -7/Zion Scavenger-Tank | -6/Proximity Caves Gunner | -6/Factory Gunner | -6/Lower Caves Scavenger-Gunner | -6/Lower Caves Scavenger-Tank | -5/Factory Scavenger-Tank | -5/Upper Caves Tank | -5/Upper Caves Mutant | -5/Zhirov Messiah-Gunner | -4/Proximity Caves Messiah-Executioner | -4/Factory Messiah-Executioner | -4/Extension Scavenger-Executioner | -4/Cetus Messiah-Executioner | -4/Archives Messiah-Executioner | -4/Hub_04(d) Messiah-Executioner | -3/Research Messiah-Executioner | -2/Research Messiah-Executioner | -2/Testing Mutant | -1/Access Resources | -11 -10 -9 -9 -8 -7 -7 -7 -7 -7 -7 -6 -6 -6 -6 -5 -5 -5 -5 -4 -4 -4 -4 -4 -4 -3 -2 -2 -1 ----------- Run | Yrd Mat Mat Min Mat Fac Was Fac Low Low Zio Pro Fac Low Low Fac Upp Upp Zhi Pro Fac Ext Cet Arc Hub Res Res Tes Acc Matter Collected 10446 | 190 191 154 98 290 371 460 480 493 524 71 290 459 494 637 267 124 41 . 339 147 538 392 771 351 859 431 730 254 Remotely . | . . . . . . . . . . . . . . . . . . . . . . . . . . . . . Salvage Created 13079 | . 307 398 135 898 597 788 516 402 921 . 127 234 502 654 60 101 . . 237 383 1272 452 393 1063 1011 882 652 94 Parts 493 | . 19 29 15 33 19 1 21 18 20 . 10 4 16 13 2 . . . 2 18 46 21 31 36 42 43 30 4 Haulers Intercepted 4 | . . . . . . . . . . . . 1 1 . . . . . . 1 . . . . 1 . . . Recyclers Shooed 4 | . . . . . 2 . 1 . . . . 1 . . . . . . . . . . . . . . . . Parts Field Recycled . | . . . . . . . . . . . . . . . . . . . . . . . . . . . . . Retrieved Matter . | . . . . . . . . . . . . . . . . . . . . . . . . . . . . . Parts Self-Destructed 103 | . . . . . . . . 18 20 1 14 . 15 12 . 6 . . 17 . . . . . . . . . Prevented . | . . . . . . . . . . . . . . . . . . . . . . . . . . . . . Parts Restored . | . . . . . . . . . . . . . . . . . . . . . . . . . . . . . Kills | -11 -10 -9 -9 -8 -7 -7 -7 -7 -7 -7 -6 -6 -6 -6 -5 -5 -5 -5 -4 -4 -4 -4 -4 -4 -3 -2 -2 -1 ------- Run | Yrd Mat Mat Min Mat Fac Was Fac Low Low Zio Pro Fac Low Low Fac Upp Upp Zhi Pro Fac Ext Cet Arc Hub Res Res Tes Acc Combat Hostiles Destroyed 184 | . 7 9 8 17 10 . 7 10 20 . 3 3 10 15 1 2 . . 3 3 12 5 . 4 11 10 9 5 Melee 4 | . . . . . 3 . . . . . . . . . . . . . . . . . . . . . . 1 Guns 143 | . 7 9 8 17 5 . 7 10 16 . . . 2 9 1 2 . . 2 2 11 5 . 4 11 10 5 . Cannons 19 | . . . . . . . . . 4 . 3 3 5 1 . . . . . . . . . . . . 3 . AOE 12 | . . . . . . . . . . . . . 3 5 . . . . . . . . . . . . . 4 Classes Destroyed 21 | . 2 3 1 3 3 . . . 1 . . 1 . . . . . . 1 . 1 . 1 2 . 2 . . Worker 6 | . 1 . . . 2 . . . . . . . . . . . . . . . . . . 2 . 1 . . Builder 3 | . . . . . 1 . . . . . . . . . . . . . . 1 . . . . . . 1 . Tunneler 2 | . . . 1 . . . . . . . . . . . . . . . . . . . . . . 1 . . Hauler 4 | . . . . . . . . . . . . 1 1 . . . . . . 1 . . . . 1 . . . Recycler 10 | . . 1 . 1 2 . 2 . . . . . . . . . . . . 1 3 . . . . . . . Mechanic 2 | . . . . . 1 . . . . . . . . 1 . . . . . . . . . . . . . . Operator 10 | . . . . 1 . . 1 . . . . . . . . . . . . . . . 7 1 . . . . Watcher 3 | . . . . . . . . . . . . . . . . . . . . . 1 . . 1 1 . . . Swarmer 31 | . . 3 8 . 4 . . 4 2 . 1 . . 1 . . . . . 2 3 . . . 1 . 2 . Grunt 73 | . 7 4 . 11 3 . 5 6 11 . . 1 7 4 . 2 . . 2 . 4 . . . . 5 . 1 Brawler 12 | . . . . 1 1 . . . 4 . . 1 1 3 1 . . . . . . . . . . . . . Duelist 6 | . . . . 1 . . . . . . . . . 4 . . . . . . . . . . . . . 1 Sentry 23 | . . 2 . 4 . . 2 . 2 . . 1 . 2 . . . . . . 3 . . 1 6 . . . Demolisher 1 | . . . . . . . . . . . . . . . . . . . . . . . . . . 1 . . Specialist 5 | . . . . . . . . . . . . . . . . . . . . . . . . . . 2 3 . Hunter 10 | . . . . . . . . . 1 . 2 . 2 . . . . . . . . . . . 2 1 2 . Programmer 12 | . . . . . 2 . . . . . . . . 1 . . . . . . 1 . . . 2 1 2 3 Heavy 1 | . . . . . . . . . . . . . . . . . . . . . . . . 1 . . . . Behemoth 3 | . . . . . . . . . . . . . . . . . . . 1 1 1 . . . . . . . Cetus Guard 5 | . . . . . . . . . . . . . . . . . . . . . . 5 . . . . . . Enhanced Grunt 2 | . . . . . . . . . . . . . . . . . . . . . . . . 2 . . . . Lightning 2 | . . . . . . . . . . . . . . . . . . . . . . . . 2 . . . . Z-Heavy 2 | . . . . . . . . . . . . . . . . . . . . . . . 2 . . . . . Fireman 7 | . . . . . . . . . . . . . . . . . . . . . . . . 7 . . . . Best Kill Streak 8 | . 4 4 8 4 4 . 4 4 7 . 2 1 6 5 1 1 . . 1 3 6 3 3 5 4 4 3 3 Combat Bots Only 8 | . 4 3 8 4 4 . 3 4 7 . 2 1 5 5 1 1 . . 1 2 6 3 . 3 4 4 3 3 Max Kills in Single Turn 3 | . 1 1 3 2 1 . 1 2 2 . 1 1 2 2 1 1 . . 1 1 2 2 1 3 1 2 1 2 Gunslinging 2 | . . . 2 1 . . . . . . . . . . . . . . . . 1 1 . 1 . . . . Exploded 2 | . . . . . . . . . . . . . 2 1 . . . . . . . . . . . . . 2 Melee 1 | . . . . . 1 . . . . . . . . . . . . . . . . . . . . . . 1 Uniques/NPCs Destroyed 1 | . . . . . . . . . . . . . . . . . . . . . . 1 . . . . . . A7 (-4/Cetus) Combat | -11 -10 -9 -9 -8 -7 -7 -7 -7 -7 -7 -6 -6 -6 -6 -5 -5 -5 -5 -4 -4 -4 -4 -4 -4 -3 -2 -2 -1 -------- Run | Yrd Mat Mat Min Mat Fac Was Fac Low Low Zio Pro Fac Low Low Fac Upp Upp Zhi Pro Fac Ext Cet Arc Hub Res Res Tes Acc Hostile Shots Fired 1507 | . 54 53 28 84 73 . 87 37 68 . 13 52 40 116 14 8 . . 50 15 59 13 . 30 73 69 210 261 Missed 533 | . 15 7 3 24 18 . 32 14 24 . 8 16 11 40 6 4 . . 10 6 21 8 . 11 31 35 78 111 Deflected 1 | . . . . . . . . . . . . . . . . . . . 1 . . . . . . . . . Hits 974 | . 39 46 25 60 55 . 55 23 44 . 5 36 29 76 8 4 . . 40 9 38 5 . 19 42 34 132 150 Melee 21 | . . . . 8 2 . . . 1 . . 1 . 5 . . . . . . . . . . . . 3 1 Projectile 953 | . 39 46 25 52 53 . 55 23 43 . 5 35 29 71 8 4 . . 40 9 38 5 . 19 42 34 129 149 AOE 11 | . . . 8 3 . . . . . . . . . . . . . . . . . . . . . . . . Critical Strikes 47 | . 1 1 . 6 3 . 2 1 3 . . 1 . 1 2 . . . 2 . 2 . . 3 1 3 9 6 Actively Blocked 10 | . . . . . . . . . . . . . . . . . . . . . . . . 1 . 3 6 . Part Disruptions 3 | . . . . . . . . . . . . . . . . . . . . . . . . . . . 3 . Damage Taken 20006 | . 499 529 453 1157 1015 . 576 364 819 43 90 528 558 1087 202 63 . . 931 180 856 79 . 1247 841 1390 3242 3257 Core 2693 | . 95 65 53 171 107 . 26 33 95 21 30 42 40 89 14 . . . 105 28 57 . . 115 53 27 729 698 Absorbed by Shields 252 | . . . . . 4 . . . . . . . . . . . . . . . 142 52 . . . . 54 . Redirected to Shielding 143 | . . . . . . . . . . . . . . . . . . . . . 16 . . 127 . . . . Ignored by Resistances 257 | . . . . . . . . . . . . . . . 18 16 . . 157 . 66 . . . . . . . Regen/Repaired (Parts) 249 | . . . . . . . . . . 249 . . . . . . . . . . . . . . . . . . Core Remaining (%) 72 | 100 62 . 70 68 . . . . . . 55 . . 79 . . . . 88 . . . . 82 95 . 41 56 Volleys Fired 491 | . 24 24 8 34 11 7 25 16 37 . 5 36 20 31 13 4 . . 11 4 21 14 21 16 37 22 42 8 Largest 7 | . 2 4 4 5 4 5 5 5 5 . 5 3 5 5 5 5 . . 5 5 6 6 6 6 7 7 6 2 Hottest 363 | . 40 164 164 241 112 160 160 147 192 . 190 156 177 164 246 246 . . 278 313 331 203 248 199 363 334 310 104 Shots Fired 2013 | . 48 70 32 164 38 34 124 79 167 . 17 73 49 120 43 23 . . 47 17 81 76 123 90 181 153 152 12 Gun 1790 | . 48 70 32 163 37 34 124 79 137 . 2 5 14 97 33 23 . . 45 16 76 75 123 90 181 153 133 . Cannon 199 | . . . . 1 . . . . 30 . 15 68 32 16 10 . . . 2 . 5 1 . . . . 19 . Launcher 22 | . . . . . . . . . . . . . 3 7 . . . . . . . . . . . . . 12 Special 2 | . . . . . 1 . . . . . . . . . . . . . . 1 . . . . . . . . Kinetic 1572 | . 48 41 16 68 37 34 124 79 167 . 17 55 46 111 24 12 . . 17 3 61 75 122 78 117 128 92 . Thermal 365 | . . 29 16 96 . . . . . . . 18 . 2 19 11 . . 28 10 15 1 1 12 43 21 43 . Explosive 22 | . . . . . . . . . . . . . 3 7 . . . . . . . . . . . . . 12 Electromagnetic 17 | . . . . . . . . . . . . . . . . . . . . . . . . . . . 17 . Phasic 35 | . . . . . . . . . . . . . . . . . . . 2 3 5 . . . 21 4 . . Robot Hit Streak 20 | . 13 13 10 20 5 6 5 6 13 . 2 4 6 7 8 16 . . 20 5 19 11 8 9 12 9 9 2 Robot Miss Streak 18 | . 2 4 6 7 18 6 8 8 5 . 2 5 5 8 5 7 . . 6 4 2 3 5 4 5 3 5 1 Penetration Max 1 | . . . . . . . . . 1 . . . . . 1 . . . . . 1 1 1 1 . 1 . . Secondary Targets 52 | . 3 2 5 5 1 . 2 3 8 . . . . 2 . 2 . . 2 3 2 4 . 2 1 4 1 . Max Gunslinging Chain 2 | . 1 1 2 1 1 . 1 1 1 . . . . 1 . 1 . . 1 1 1 2 . 1 1 1 1 . Shots Hit Robots 1125 | . 34 39 20 111 51 20 56 28 94 . 6 21 31 71 30 22 . . 37 14 52 52 51 41 81 75 83 5 Core Hits 662 | . 17 18 19 79 32 13 26 17 43 . 3 8 25 55 28 19 . . 19 11 37 27 25 30 37 32 29 13 Critical Kills 32 | . 1 . . . 3 1 . . 4 . 3 2 6 . . . . . . . 2 1 3 2 2 2 . . Critical Parts Destroyed 34 | . . . . . 3 . 1 . 5 . 1 4 4 1 . . . . . . 2 3 6 2 2 . . . Critical Strikes 79 | . 1 . 1 3 6 1 1 . 12 . 4 9 10 1 . . . . . . 4 5 9 4 6 2 . . Burn 4 | . . . 1 3 . . . . . . . . . . . . . . . . . . . . . . . . Destroy 69 | . 1 . . . . 1 1 . 12 . 4 9 10 1 . . . . . . 4 5 9 4 6 2 . . Smash 6 | . . . . . 6 . . . . . . . . . . . . . . . . . . . . . . . Melee Attacks 70 | . . . . . 47 4 . . . . . 3 1 . . . . . 6 3 1 . . . . . 5 . Impact 55 | . . . . . 47 4 . . . . . 3 1 . . . . . . . . . . . . . . . Slashing . | . . . . . . . . . . . . . . . . . . . . . . . . . . . . . Piercing 15 | . . . . . . . . . . . . . . . . . . . 6 3 1 . . . . . 5 . Sneak Attacks 7 | . . . . . 5 . . . . . . . . . . . . . . 1 . . . . . . 1 . Combat Hostiles . | . . . . . . . . . . . . . . . . . . . . . . . . . . . . . Follow-up Attacks 13 | . . . . . 13 . . . . . . . . . . . . . . . . . . . . . . . Damage Inflicted 30288 | . 388 448 230 1735 1357 475 1160 687 1999 22 135 468 1345 2178 647 506 . . 825 370 1545 1493 1620 2470 2426 2138 2314 1307 Guns 22847 | . 388 448 230 1711 325 475 1160 687 1642 . 13 14 191 1105 567 506 . . 657 282 1511 1493 1620 1258 2426 2138 2000 . Cannons 1893 | . . . . 24 . . . . 357 . 122 454 407 194 80 . . . . . 34 . . . . . 221 . Explosions 4137 | . . . . . . . . . . . . . 747 879 . . . . . . . . . 1212 . . . 1299 Melee 1351 | . . . . . 1032 . . . . . . . . . . . . . 168 88 . . . . . . 63 . Ramming 60 | . . . . . . . . . . 22 . . . . . . . . . . . . . . . . 30 8 Kinetic 19422 | . 388 234 78 569 325 475 1160 687 1999 . 135 468 598 1273 378 212 . . 204 17 1203 1493 1620 1088 1527 1715 1576 . Thermal 4718 | . . 214 152 1166 . . . . . . . . . 26 269 294 . . 453 232 243 . . 170 671 309 519 . Explosive 2925 | . . . . . . . . . . . . . 747 879 . . . . . . . . . . . . . 1299 Electromagnetic 1338 | . . . . . . . . . . . . . . . . . . . . . . . . 1212 . . 126 . Impact 1032 | . . . . . 1032 . . . . . . . . . . . . . . . . . . . . . . . Slashing . | . . . . . . . . . . . . . . . . . . . . . . . . . . . . . Piercing 319 | . . . . . . . . . . . . . . . . . . . 168 88 . . . . . . 63 . Phasic 474 | . . . . . . . . . . . . . . . . . . . . 33 99 . . . 228 114 . . Highest Corruption 38 | . . . . 2 8 8 8 8 8 8 . 2 2 3 3 3 3 3 3 3 5 5 17 7 . 9 38 14 Average Corruption 5 | . . . . 2 4 8 8 8 8 8 . 1 2 2 2 3 3 3 3 3 4 5 6 3 . 2 21 9 Corruption Purged 22 | . . . . . . . . . . . . . . . . . . . . . . . 22 . . . . . Corruption Blocked . | . . . . . . . . . . . . . . . . . . . . . . . . . . . . . Effects 278 | . . . . 1 20 20 20 21 22 3 . 4 9 12 . 10 7 4 8 3 31 16 16 . . . 39 12 Message Errors 58 | . . . . . 5 7 1 5 5 1 . 1 3 . . 2 1 1 . 1 8 3 3 . . . 7 4 Matter Fused 62 | . . . . . 5 3 6 4 3 1 . 1 3 5 . . 2 1 3 1 7 4 4 . . . 8 1 Heat Flow Errors 36 | . . . . . 1 3 6 2 4 . . 1 1 2 . 1 . 2 1 . 3 2 . . . . 5 2 Energy Discharges 30 | . . . . . 1 1 1 1 3 . . 1 . 1 . . 3 . 2 . 3 3 2 . . . 6 2 Parts Rejected 4 | . . . . . 1 . 2 . . . . . . 1 . . . . . . . . . . . . . . Parts Fused 2 | . . . . . 1 . 1 . . . . . . . . . . . . . . . . . . . . . Data Loss (minor) 30 | . . . . . 4 3 1 2 . . . . . 2 . 4 1 . . . 7 1 2 . . . 2 1 Data Loss (major) 18 | . . . . . 1 1 2 2 5 . . . 1 . . . . . . . 1 2 2 . . . 1 . Misfires 16 | . . . . 1 1 2 . 2 1 . . . 1 . . 3 . . 2 1 . 1 . . . . 1 . Alerts 2 | . . . . . . . . . . 1 . . . . . . . . . . . . . . . . 1 . Misdirections 8 | . . . . . . . . . . . . . . . . . . . . . . . . . . . 6 2 Weapon Failures 12 | . . . . . . . . 3 1 . . . . 1 . . . . . . 2 . 3 . . . 2 . Overload Shots 5 | . . . . . . . . . . . . . . . . . . . . . 3 1 . . . . 1 . Overflow Damage 487 | . . . . . 305 . . . . . . 2 . 48 . . . . . . . . . 79 . . . 53 Projectiles 18 | . . . . . . . . . . . . 2 . 16 . . . . . . . . . . . . . . Explosions 164 | . . . . . . . . . . . . . . 32 . . . . . . . . . 79 . . . 53 Melee 305 | . . . . . 305 . . . . . . . . . . . . . . . . . . . . . . . Knockbacks 11 | . . . . 1 3 . . . 1 . . 2 2 2 . . . . . . . . . . . . . . Impact 3 | . . . . . 3 . . . . . . . . . . . . . . . . . . . . . . . Kinetic 7 | . . . . . . . . . 1 . . 2 2 2 . . . . . . . . . . . . . . Secondary 1 | . . . . 1 . . . . . . . . . . . . . . . . . . . . . . . . Self-Inflicted Damage 457 | . . . . . 147 . . . . 22 . . 54 50 . . . . . . . . . 100 . . . 84 Shots 9 | . . . . . 2 . . . . . . . 3 1 . . . . . . . . . 1 . . . 2 Rammed 7 | . . . . 2 . . . . . . . . . . . . . . . . . . . . . . . 5 Targets Rammed 9 | . . . . 2 . . . . . . . . . . . . . . . . . . . . . . 1 6 Kicked 1 | . . . . . . . . . . . . . . . . . . . . . . . . . . . 1 . Crushed 1 | . . . . . . . . . . . . . . . . . . . . . . . . . . . . 1 Highest Temperature 322 | . 22 72 167 322 99 308 216 240 229 . 24 100 163 138 203 236 . 217 253 . 215 173 . 13 292 219 219 181 Average Temperature 63 | . 10 27 60 103 28 111 41 68 46 . 13 28 48 57 45 43 . 121 43 . 95 98 . 8 91 58 49 103 Received Heat Transfer 3505 | . 297 225 . 423 330 . 270 117 351 . . 156 180 228 54 9 . . 117 . 405 9 . 109 27 27 72 99 Effects 2 | . . . . 1 . . . . 1 . . . . . . . . . . . . . . . . . . . Energy Bleed 1 | . . . . . . . . . 1 . . . . . . . . . . . . . . . . . . . Interference 1 | . . . . 1 . . . . . . . . . . . . . . . . . . . . . . . . Siege Activations . | . . . . . . . . . . . . . . . . . . . . . . . . . . . . . Martial Activations 1 | . . . . . . . . . . . . . . . . . . . 1 . . . . . . . . . Total Turns 17 | . . . . . . . . . . . . . . . . . . . 17 . . . . . . . . . Longest Duration 17 | . . . . . . . . . . . . . . . . . . . 17 . . . . . . . . . Shielding Activations . | . . . . . . . . . . . . . . . . . . . . . . . . . . . . . Robots Disrupted . | . . . . . . . . . . . . . . . . . . . . . . . . . . . . . Combat Hostiles . | . . . . . . . . . . . . . . . . . . . . . . . . . . . . . Robots Corrupted 12 | . . . . . 3 . . . . . . . . . . . . . . . . . . 8 . . 1 . Combat Hostiles 3 | . . . . . 2 . . . . . . . . . . . . . . . . . . . . . 1 . Parts Fried 18 | . . . . . 4 . . . . . . . . . . . . . . 1 2 . . 11 . . . . Impact Corruptions 10 | . . . . . 10 . . . . . . . . . . . . . . . . . . . . . . . Robots Melted . | . . . . . . . . . . . . . . . . . . . . . . . . . . . . . Combat Hostiles . | . . . . . . . . . . . . . . . . . . . . . . . . . . . . . Parts Melted 14 | . . . 1 2 . . . . . . . 1 . . . . . . 1 1 . . . 3 2 . 3 . Heat Transferred 8454 | . . 507 376 2236 . . . . . . . . . 37 473 650 . . 999 449 425 . . 302 1147 407 446 . Parts Sabotaged 2 | . . . . . . . . . . . . . . . . . . . . . . . . . . . 2 . Parts Stolen . | . . . . . . . . . . . . . . . . . . . . . . . . . . . . . Parts Stripped . | . . . . . . . . . . . . . . . . . . . . . . . . . . . . . Power Chain Reactions . | . . . . . . . . . . . . . . . . . . . . . . . . . . . . . Alert | -11 -10 -9 -9 -8 -7 -7 -7 -7 -7 -7 -6 -6 -6 -6 -5 -5 -5 -5 -4 -4 -4 -4 -4 -4 -3 -2 -2 -1 ------- Run | Yrd Mat Mat Min Mat Fac Was Fac Low Low Zio Pro Fac Low Low Fac Upp Upp Zhi Pro Fac Ext Cet Arc Hub Res Res Tes Acc Maximum Alert Level 4 | . . . . . 1 . . . . . . 1 . . . . . . . 1 4 3 2 4 2 3 2 2 Low Security (%) 62 | 100 100 100 100 100 93 100 100 . . . . 92 . . 100 . . . . 94 64 . 30 65 . . . 24 Level 1 13 | . . . . . 6 . . . . . . 7 . . . . . . . 5 8 . 45 10 . 67 13 44 Level 2 18 | . . . . . . . . . . . . . . . . . . . . . 13 . 24 15 100 15 86 30 Level 3 5 | . . . . . . . . . . . . . . . . . . . . . 8 100 . 5 . 16 . . Level 4 . | . . . . . . . . . . . . . . . . . . . . . 5 . . 2 . . . . Level 5 . | . . . . . . . . . . . . . . . . . . . . . . . . . . . . . High Security . | . . . . . . . . . . . . . . . . . . . . . . . . . . . . . Max Security . | . . . . . . . . . . . . . . . . . . . . . . . . . . . . . Peak Influence 1491 | . 75 105 165 169 228 73 60 . . . . 258 . . 144 . . . . 219 1491 993 529 1151 658 876 491 595 Initial 828 | . . 27 15 46 57 73 . . . . . 27 . . 14 . . . . 88 99 828 357 35 582 348 461 212 Average 229 | . 21 50 107 41 65 9 18 . . . . 78 . . 51 . . . . 70 329 908 296 298 563 427 436 307 Influence Increases 11205 | . 185 300 185 457 488 4 206 220 430 . 184 558 270 327 290 215 . . 424 306 1904 383 342 1366 428 749 356 628 Destroy 0b10 Robot/C 5520 | . 140 180 160 340 200 . 140 200 400 . 120 240 200 300 160 120 . . 240 120 780 160 80 300 220 440 180 100 Destroy 0b10 Robot/NC 265 | . 5 5 5 10 30 . 15 . . . . 10 5 5 20 . . . . 20 30 10 35 30 10 15 5 . Destroy Leader 944 | . 40 40 20 90 40 . 30 20 30 . 20 50 20 20 24 10 . . 40 34 84 . . 86 94 92 30 30 Allied During Kill 1980 | . . . . . . . . . . . 44 50 . 2 39 85 . . 144 18 839 170 115 359 . 115 . . Successful Hack 50 | . . . . . 24 . . . . . . . . . . . . . . . 14 . . . 12 . . . Disable Machine 765 | . . 15 . 15 90 . 15 . . . . 120 . . . . . . . 60 45 15 60 225 . . 60 45 Destroy Structure 1126 | . . . . 2 44 4 6 . . . . 73 . . 32 . . . . 54 112 28 52 336 32 87 66 198 Partial Spotted 15 | . . . . . . . . . . . . . . . . . . . . . . . . . . . . 15 Lose Combat Pursuer 540 | . . 60 . . 60 . . . . . . 15 45 . 15 . . . . . . . . 30 60 . 15 240 Influence Decreases 10639 | . 118 326 106 450 405 214 171 201 335 149 140 422 413 340 202 296 31 . 282 245 628 969 1133 357 919 548 822 417 Entered New Map 3388 | . . 40 26 74 70 137 . 14 11 149 . 17 67 8 10 42 7 . . 54 104 651 536 67 529 272 360 143 Time Decay 6111 | . 108 236 80 296 325 77 141 177 294 . 120 295 326 262 192 254 24 . 222 191 434 238 577 170 350 206 302 214 Lost Part 730 | . 10 50 . 80 10 . 30 10 30 . . 30 20 50 . . . . 40 . 50 . . 20 40 50 160 50 Lost Ally 410 | . . . . . . . . . . . 20 80 . 20 . . . . 20 . 40 80 20 100 . 20 . 10 Squads Dispatched 53 | . 2 . . 9 4 . . . 1 . . 2 . 1 2 . . . . 2 4 . . 1 3 8 7 7 Investigation 8 | . . . . . 2 . . . . . . . . . . . . . . 1 1 . . . . 1 . 3 Extermination 11 | . . . . . 2 . . . . . . 1 . . 1 . . . . 1 . . . . 1 1 2 2 Reinforcement 20 | . 2 . . 6 . . . . . . . 1 . . 1 . . . . . 2 . . 1 1 5 1 . Assault 5 | . . . . . . . . . 1 . . . . 1 . . . . . . 1 . . . 1 . 1 . Garrison 9 | . . . . 3 . . . . . . . . . . . . . . . . . . . . . 1 3 2 Intercept . | . . . . . . . . . . . . . . . . . . . . . . . . . . . . . Searches Triggered . | . . . . . . . . . . . . . . . . . . . . . . . . . . . . . Construction Impeded 4 | . . . . 1 . . . . . . . . . . 1 . . . . . 1 . . . . 1 . . Haulers Reinforced 2 | . . . . . . . . . . . . 1 . . . . . . . . . . . . 1 . . . Active Scanning Responses . | . . . . . . . . . . . . . . . . . . . . . . . . . . . . . Cargo Convoy Interrupts . | . . . . . . . . . . . . . . . . . . . . . . . . . . . . . Stealth | -11 -10 -9 -9 -8 -7 -7 -7 -7 -7 -7 -6 -6 -6 -6 -5 -5 -5 -5 -4 -4 -4 -4 -4 -4 -3 -2 -2 -1 --------- Run | Yrd Mat Mat Min Mat Fac Was Fac Low Low Zio Pro Fac Low Low Fac Upp Upp Zhi Pro Fac Ext Cet Arc Hub Res Res Tes Acc Distress Signals 13 | . . 1 . 3 . . . . . . . . . . 1 . . . . . 2 2 . . 1 1 1 1 Communications Jammed 8 | . . . . . . . . . . . . . . . . . . . . . . . . 8 . . . . Distress Signals 5 | . . . . . . . . . . . . . . . . . . . . . . . . 5 . . . . Times Spotted 400 | . 11 16 10 25 16 . 9 10 21 . 10 12 13 16 13 5 . . 11 8 42 10 13 24 25 24 32 24 Peak Tracking Total 13 | . 5 5 4 4 6 . 4 4 5 . 4 4 5 5 4 3 . . 4 4 13 5 1 7 6 6 10 9 Tactical Retreats 17 | . . 2 . . 2 . . . . . . 1 2 . 1 . . . . . . . . 1 1 . 1 6 Traps | -11 -10 -9 -9 -8 -7 -7 -7 -7 -7 -7 -6 -6 -6 -6 -5 -5 -5 -5 -4 -4 -4 -4 -4 -4 -3 -2 -2 -1 ------- Run | Yrd Mat Mat Min Mat Fac Was Fac Low Low Zio Pro Fac Low Low Fac Upp Upp Zhi Pro Fac Ext Cet Arc Hub Res Res Tes Acc Traps Triggered 16 | . . . . . 4 . . . . . . . . . . . . . . . 1 . . 2 2 2 3 2 Indirectly 1 | . . . . . . . . . . . . . . . . . . . . . . . . 1 . . . . Trap Hack Attempts . | . . . . . . . . . . . . . . . . . . . . . . . . . . . . . Triggered . | . . . . . . . . . . . . . . . . . . . . . . . . . . . . . Disarmed . | . . . . . . . . . . . . . . . . . . . . . . . . . . . . . Reprogrammed . | . . . . . . . . . . . . . . . . . . . . . . . . . . . . . Reused . | . . . . . . . . . . . . . . . . . . . . . . . . . . . . . Traps Extracted . | . . . . . . . . . . . . . . . . . . . . . . . . . . . . . Installed . | . . . . . . . . . . . . . . . . . . . . . . . . . . . . . Triggered . | . . . . . . . . . . . . . . . . . . . . . . . . . . . . . Machines | -11 -10 -9 -9 -8 -7 -7 -7 -7 -7 -7 -6 -6 -6 -6 -5 -5 -5 -5 -4 -4 -4 -4 -4 -4 -3 -2 -2 -1 ---------- Run | Yrd Mat Mat Min Mat Fac Was Fac Low Low Zio Pro Fac Low Low Fac Upp Upp Zhi Pro Fac Ext Cet Arc Hub Res Res Tes Acc Machines Disabled 56 | . . 1 . 1 6 . 1 . . . . 8 . 1 . . . . . 4 6 1 4 15 . . 5 3 Max in Single Turn 10 | . . 1 . 1 5 . 1 . . . . 1 . 1 . . . . . 1 1 1 1 10 . . 1 1 Garrison Access 3 | . . . . . 1 . . . . . . . . . . . . . . 1 . . . . 1 . . . Network Hub 1 | . . . . . . . . . . . . . . . . . . . . . . . . 1 . . . . Machines Repaired . | . . . . . . . . . . . . . . . . . . . . . . . . . . . . . Machines Dismantled . | . . . . . . . . . . . . . . . . . . . . . . . . . . . . . Machines Sabotaged . | . . . . . . . . . . . . . . . . . . . . . . . . . . . . . Overloaded Fab Kills . | . . . . . . . . . . . . . . . . . . . . . . . . . . . . . Hacking | -11 -10 -9 -9 -8 -7 -7 -7 -7 -7 -7 -6 -6 -6 -6 -5 -5 -5 -5 -4 -4 -4 -4 -4 -4 -3 -2 -2 -1 --------- Run | Yrd Mat Mat Min Mat Fac Was Fac Low Low Zio Pro Fac Low Low Fac Upp Upp Zhi Pro Fac Ext Cet Arc Hub Res Res Tes Acc Machines Accessed 26 | . . . . . 4 . 1 . . . . . 1 . 1 . . 4 . 3 6 1 . . 3 . . 2 Terminals 11 | . . . . . 1 . 1 . . . . . . . . . . . . 1 6 1 . . . . . 1 Fabricators 2 | . . . . . 1 . . . . . . . . . 1 . . . . . . . . . . . . . Repair Stations 1 | . . . . . . . . . . . . . . . . . . . . 1 . . . . . . . . Recycling Units . | . . . . . . . . . . . . . . . . . . . . . . . . . . . . . Scanalyzers 3 | . . . . . 1 . . . . . . . . . . . . . . . . . . . 2 . . . Garrison Access 4 | . . . . . 1 . . . . . . . . . . . . . . 1 . . . . 1 . . 1 Total Hacks 62 | . . . . . 10 . 1 . . . . . 1 . 1 . . 17 . 7 11 1 . . 9 . . 4 Successful 29 | . . . . . 4 . . . . . . . 1 . . . . 17 . 2 3 . . . 2 . . . Failed 32 | . . . . . 6 . 1 . . . . . . . 1 . . . . 5 8 1 . . 6 . . 4 Catastrophic 8 | . . . . . 2 . . . . . . . . . . . . . . 1 2 . . . . . . 3 Database Lockouts 1 | . . . . . . . . . . . . . . . . . . . . . . . . . 1 . . . Manual 63 | . . . . . 4 . . . . . . 9 . . 12 . . . . 8 11 1 . 9 3 2 2 2 Terminals 19 | . . . . . 2 . 1 . . . . . . . . . . . . 2 11 1 . . . . . 2 Fabricators 4 | . . . . . 3 . . . . . . . . . 1 . . . . . . . . . . . . . Repair Stations 2 | . . . . . . . . . . . . . . . . . . . . 2 . . . . . . . . Recycling Units . | . . . . . . . . . . . . . . . . . . . . . . . . . . . . . Scanalyzers 8 | . . . . . 3 . . . . . . . . . . . . . . . . . . . 5 . . . Garrison Access 11 | . . . . . 2 . . . . . . . . . . . . . . 3 . . . . 4 . . 2 Terminal Hacks 22 | . . . . . . . . . . . . . 1 . . . . 17 . 1 3 . . . . . . . Record 5 | . . . . . . . . . . . . . . . . . . 5 . . . . . . . . . . Part Schematic 4 | . . . . . . . . . . . . . . . . . . 4 . . . . . . . . . . Robot Analysis 4 | . . . . . . . . . . . . . . . . . . 4 . . . . . . . . . . Prototype ID Bank 4 | . . . . . . . . . . . . . . . . . . 4 . . . . . . . . . . Open Door 5 | . . . . . . . . . . . . . 1 . . . . . . 1 3 . . . . . . . Fabricator Hacks 1 | . . . . . 1 . . . . . . . . . . . . . . . . . . . . . . . Load Schematic 1 | . . . . . 1 . . . . . . . . . . . . . . . . . . . . . . . Repair Station Hacks . | . . . . . . . . . . . . . . . . . . . . . . . . . . . . . Recycling Unit Hacks . | . . . . . . . . . . . . . . . . . . . . . . . . . . . . . Scanalyzer 3 | . . . . . 2 . . . . . . . . . . . . . . . . . . . 1 . . . Insert Component 1 | . . . . . 1 . . . . . . . . . . . . . . . . . . . . . . . Analyze 1 | . . . . . 1 . . . . . . . . . . . . . . . . . . . . . . . Retrieve Study 1 | . . . . . . . . . . . . . . . . . . . . . . . . . 1 . . . Garrison Access Hacks 3 | . . . . . 1 . . . . . . . . . . . . . . 1 . . . . 1 . . . Seal Access 3 | . . . . . 1 . . . . . . . . . . . . . . 1 . . . . 1 . . . Unauthorized Hacks . | . . . . . . . . . . . . . . . . . . . . . . . . . . . . . Terminals . | . . . . . . . . . . . . . . . . . . . . . . . . . . . . . Fabricators . | . . . . . . . . . . . . . . . . . . . . . . . . . . . . . Repair Stations . | . . . . . . . . . . . . . . . . . . . . . . . . . . . . . Recycling Units . | . . . . . . . . . . . . . . . . . . . . . . . . . . . . . Scanalyzers . | . . . . . . . . . . . . . . . . . . . . . . . . . . . . . Garrison Access . | . . . . . . . . . . . . . . . . . . . . . . . . . . . . . Data Cores Recovered 1 | . . . . . . . 1 . . . . . . . . . . . . . . . . . . . . . Used . | . . . . . . . . . . . . . . . . . . . . . . . . . . . . . Hacking Detections 17 | . . . . . 3 . 1 . . . . . . . 1 . . . . 2 4 2 . . 2 . . 2 Full Trace Events 5 | . . . . . 2 . . . . . . . . . . . . . . 1 1 . . . . . . 1 Feedback Events . | . . . . . . . . . . . . . . . . . . . . . . . . . . . . . Feedback Blocked . | . . . . . . . . . . . . . . . . . . . . . . . . . . . . . Robot Schematics Acquired 3 | . . . . . . . . . . 3 . . . . . . . . . . . . . . . . . . Robots Built . | . . . . . . . . . . . . . . . . . . . . . . . . . . . . . Authchips . | . . . . . . . . . . . . . . . . . . . . . . . . . . . . . Time . | . . . . . . . . . . . . . . . . . . . . . . . . . . . . . Total Robot Build Rating . | . . . . . . . . . . . . . . . . . . . . . . . . . . . . . Part Schematics Acquired 33 | . . . . . 1 . . . . 15 . . . . 13 . . 4 . . . . . . . . . . Parts Built . | . . . . . . . . . . . . . . . . . . . . . . . . . . . . . Authchips . | . . . . . . . . . . . . . . . . . . . . . . . . . . . . . Time . | . . . . . . . . . . . . . . . . . . . . . . . . . . . . . Total Part Build Rating . | . . . . . . . . . . . . . . . . . . . . . . . . . . . . . Part Studies Acquired 1 | . . . . . . . . . . . . . . . . . . . . . . . . . 1 . . . Parts Repaired . | . . . . . . . . . . . . . . . . . . . . . . . . . . . . . Time . | . . . . . . . . . . . . . . . . . . . . . . . . . . . . . Parts Recycled . | . . . . . . . . . . . . . . . . . . . . . . . . . . . . . Recycled Matter . | . . . . . . . . . . . . . . . . . . . . . . . . . . . . . Retrieved Matter . | . . . . . . . . . . . . . . . . . . . . . . . . . . . . . Retrieved Components . | . . . . . . . . . . . . . . . . . . . . . . . . . . . . . Parts Scanalyzed 1 | . . . . . 1 . . . . . . . . . . . . . . . . . . . . . . . Part Schematics Acquired 1 | . . . . . 1 . . . . . . . . . . . . . . . . . . . . . . . Parts Damaged . | . . . . . . . . . . . . . . . . . . . . . . . . . . . . . Bothacking | -11 -10 -9 -9 -8 -7 -7 -7 -7 -7 -7 -6 -6 -6 -6 -5 -5 -5 -5 -4 -4 -4 -4 -4 -4 -3 -2 -2 -1 ------------ Run | Yrd Mat Mat Min Mat Fac Was Fac Low Low Zio Pro Fac Low Low Fac Upp Upp Zhi Pro Fac Ext Cet Arc Hub Res Res Tes Acc Used RIF Installer . | . . . . . . . . . . . . . . . . . . . . . . . . . . . . . Robots Hacked 2 | . . . . . 1 . . . . . . . . . . . . . . 1 . . . . . . . . Non-combat 2 | . . . . . 1 . . . . . . . . . . . . . . 1 . . . . . . . . Combat . | . . . . . . . . . . . . . . . . . . . . . . . . . . . . . Robot Hacks Applied 2 | . . . . . 1 . . . . . . . . . . . . . . 1 . . . . . . . . find_chute 2 | . . . . . 1 . . . . . . . . . . . . . . 1 . . . . . . . . Relay Couplers Released 7 | . . . . . 3 . . . . . . . . . . . . . . . . . . . . 4 . . Programmers 7 | . . . . . 3 . . . . . . . . . . . . . . . . . . . . 4 . . Fabnet Peak Effective % . | . . . . . . . . . . . . . . . . . . . . . . . . . . . . . Robots Rewired 9 | . . . . . . . . . 1 . . . . 1 . . . . . . 7 . . . . . . . Allies Hacked . | . . . . . . . . . . . . . . . . . . . . . . . . . . . . . Hacks Repelled . | . . . . . . . . . . . . . . . . . . . . . . . . . . . . . Allies | -11 -10 -9 -9 -8 -7 -7 -7 -7 -7 -7 -6 -6 -6 -6 -5 -5 -5 -5 -4 -4 -4 -4 -4 -4 -3 -2 -2 -1 -------- Run | Yrd Mat Mat Min Mat Fac Was Fac Low Low Zio Pro Fac Low Low Fac Upp Upp Zhi Pro Fac Ext Cet Arc Hub Res Res Tes Acc Total Allies 55 | . . . . . . . . . 1 4 . 3 . 1 4 . . . . 1 27 5 . 7 . 1 . 1 Largest Group 26 | . . . . . . . . . 1 5 4 3 . 1 4 4 4 4 3 1 26 19 16 14 . 1 . 1 Highest-Rated Group 1762 | . . . . . . . . . 16 170 154 210 . 32 362 362 362 362 277 146 1762 1508 1158 744 . 269 . 28 Highest-Rated Ally 269 | . . . . . . . . . 16 40 40 70 . 32 96 96 96 96 96 146 159 152 135 135 . 269 . 28 Zionite Dispatches 11 | . . . . . . . . . . . . 1 . . 1 . . . . 1 4 . . 2 . 1 . 1 Heavy 4 | . . . . . . . . . . . . . . . 1 . . . . . 3 . . . . . . . Light 2 | . . . . . . . . . . . . 1 . . . . . . . . 1 . . . . . . . Fire 2 | . . . . . . . . . . . . . . . . . . . . . . . . 2 . . . . Experimental 1 | . . . . . . . . . . . . . . . . . . . . . . . . . . 1 . . Hero 1 | . . . . . . . . . . . . . . . . . . . . 1 . . . . . . . . Explosive Resupply 1 | . . . . . . . . . . . . . . . . . . . . . . . . . . . . 1 Total Orders 2 | . . . . . . . . . . 1 . . . . . . . . . . . . . . . . . 1 STAY 1 | . . . . . . . . . . 1 . . . . . . . . . . . . . . . . . . DROP 1 | . . . . . . . . . . . . . . . . . . . . . . . . . . . . 1 Ally Attacks 447 | . . . . . . . . . . . 6 52 . 1 20 8 . . 31 14 158 39 16 71 . 31 . . Total Damage 22320 | . . . . . . . . . . . 90 1802 . 41 1466 420 . . 1668 995 7748 1215 843 2924 . 3108 . . Kills 112 | . . . . . . . . . . . 3 11 . . 11 4 . . 11 4 30 5 5 15 . 13 . . Allies Corrupted 18 | . . . . . . . . . . . . 1 . . . . . . . . 1 . 1 14 . 1 . . Allies Melted . | . . . . . . . . . . . . . . . . . . . . . . . . . . . . . Intel | -11 -10 -9 -9 -8 -7 -7 -7 -7 -7 -7 -6 -6 -6 -6 -5 -5 -5 -5 -4 -4 -4 -4 -4 -4 -3 -2 -2 -1 ------- Run | Yrd Mat Mat Min Mat Fac Was Fac Low Low Zio Pro Fac Low Low Fac Upp Upp Zhi Pro Fac Ext Cet Arc Hub Res Res Tes Acc Active Infowar (turns) 10879 | . . . . . 526 274 . . . . . 532 962 568 547 547 336 306 461 500 1066 500 1775 356 795 427 385 16 Optics 9678 | . . . . . . . . . . . . 532 962 568 547 547 336 306 461 500 1066 500 1775 356 795 427 . . Sensors 1615 | . . . . . 526 274 . . . . . . . . . . . . . . . . . . 194 236 385 . IFF 266 | . . . . . . . . . . . . . . . . 152 114 . . . . . . . . . . . Terrain 16 | . . . . . . . . . . . . . . . . . . . . . . . . . . . . 16 Machine Analysis 1628 | . . . . . . . . . . . . . . . . . . . 177 324 1066 61 . . . . . . Jamming 782 | . . . . . . . . . . . . . . . . . . . . . . . . 343 439 . . . Robot Analysis Total 4 | . . . . . . . . . . . . . . . . . . 4 . . . . . . . . . . Derelict Logs Recovered 9 | . . . . . . . . 1 1 2 . . . 2 . 1 1 . 1 . . . . . . . . . Drone Launches . | . . . . . . . . . . . . . . . . . . . . . . . . . . . . . Drone Recoveries . | . . . . . . . . . . . . . . . . . . . . . . . . . . . . . Zionite Intel Received 3 | . . . . . . . . . . . . 1 . . 1 . . . . . . . . 1 . . . . Component Stockpiles 2 | . . . . . . . . . . . . 1 . . . . . . . . . . . 1 . . . . Component Schematics 1 | . . . . . . . . . . . . . . . 1 . . . . . . . . . . . . . Exploration | -11 -10 -9 -9 -8 -7 -7 -7 -7 -7 -7 -6 -6 -6 -6 -5 -5 -5 -5 -4 -4 -4 -4 -4 -4 -3 -2 -2 -1 ------------- Run | Yrd Mat Mat Min Mat Fac Was Fac Low Low Zio Pro Fac Low Low Fac Upp Upp Zhi Pro Fac Ext Cet Arc Hub Res Res Tes Acc Turns Passed 18814 | 82 405 546 168 892 1066 634 593 435 659 2071 251 752 962 568 547 547 336 306 461 500 1066 500 1775 356 795 433 668 440 Spaces Moved 11296 | 47 207 267 97 241 933 462 349 239 330 1280 145 344 465 239 393 440 284 236 328 392 634 271 376 254 545 286 502 710 Core 1351 | 3 . . . 11 509 . . . . . . 1 . . . . . . . . . . . . . . 120 707 Treads 3203 | 44 207 196 97 230 125 . 141 239 330 1280 145 166 . . . . . . . . . . . . . . . 3 Legs 5624 | . . . . . . . . . . . . 177 465 239 393 440 284 236 328 392 634 271 376 254 545 286 304 . Wheels 1040 | . . 71 . . 299 462 208 . . . . . . . . . . . . . . . . . . . . . Hover . | . . . . . . . . . . . . . . . . . . . . . . . . . . . . . Flight 78 | . . . . . . . . . . . . . . . . . . . . . . . . . . . 78 . Fastest Speed 45 | 50 160 105 145 50 50 125 125 160 160 160 160 160 190 190 117 117 117 116 115 115 115 118 112 112 112 111 45 50 Average Speed 129 | 152 160 162 145 297 89 125 139 160 160 160 160 180 190 190 117 117 117 116 116 115 116 118 113 113 112 111 86 51 Slowest Speed 1250 | 160 160 240 145 312 240 125 160 160 160 160 160 1250 260 190 190 117 117 117 234 115 118 118 118 204 112 112 197 200 Overloaded Moves 1 | . . . . . . . . . . . . . . . . . . . 1 . . . . . . . . . Propulsion Burnouts . | . . . . . . . . . . . . . . . . . . . . . . . . . . . . . Robots Hopped 2 | . . . . . . . . . . . . . . . . . . . . . . . . . . . 2 . Potential Cave-ins . | . . . . . . . . . . . . . . . . . . . . . . . . . . . . . Cave-ins Triggered . | . . . . . . . . . . . . . . . . . . . . . . . . . . . . . Teleports 1 | . . . . . . . . . . . . . . . . . . . . . . . . . . . 1 . Exploration Rate (%) 41 | 5 42 30 18 22 17 95 10 52 56 88 27 8 60 33 13 68 48 61 54 17 82 73 90 34 17 12 45 17 Regions Visited 28 Branch Regions 16 Pre-discovered Areas 5 | . . . . . . . . . . 1 . . . 1 . . . 3 . . . . . . . . . . Known Exits Taken 7 | . . . . . . . 1 . . . 1 . . 1 1 . . . . . . . . 1 1 1 . . Unknown Exits Taken 19 | 1 1 1 1 1 . . . 1 1 1 . 1 1 . . 1 1 1 1 1 1 1 1 . . . 1 . Scrap Searched 16 | . . . . . . . . 2 1 . 1 . 5 1 . 2 1 . 3 . . . . . . . . . Spaces Dug 51 | . . . . . 5 4 . . . . . 6 1 . 1 . . . . . . . . . 7 . 3 24 Terrain Destroyed 681 | . . . . . 68 4 3 . 17 . 8 32 35 36 4 1 . . 4 1 13 19 54 191 32 14 23 122 Melee 14 | . . . . . 5 4 . . . . . 3 1 . . . . . . . . . . . . . 1 . Projectile 263 | . . . . . . . 3 . 17 . 8 29 10 7 4 1 . . 4 1 13 19 54 26 32 13 22 . AOE 403 | . . . . . 63 . . . . . . . 24 29 . . . . . . . . . 165 . . . 122 Terrain Rammed 1 | . . . . . . . . . . 1 . . . . . . . . . . . . . . . . . . Walls Destroyed . | . . . . . . . . . . . . . . . . . . . . . . . . . . . . . Machines Disabled 1 | . . . . . . . . . . 1 . . . . . . . . . . . . . . . . . . Actions | -11 -10 -9 -9 -8 -7 -7 -7 -7 -7 -7 -6 -6 -6 -6 -5 -5 -5 -5 -4 -4 -4 -4 -4 -4 -3 -2 -2 -1 --------- Run | Yrd Mat Mat Min Mat Fac Was Fac Low Low Zio Pro Fac Low Low Fac Upp Upp Zhi Pro Fac Ext Cet Arc Hub Res Res Tes Acc Total 14230 | 54 237 331 106 326 1083 494 396 258 380 1303 153 412 503 289 452 461 288 271 363 427 906 414 1662 284 645 339 620 773 Wait 1639 | . . 4 . 16 29 . . . 8 10 . . . . 19 5 . . 2 . 151 98 1220 . 9 18 26 24 Move 11265 | 46 206 266 96 241 933 461 348 238 329 1279 144 343 464 238 392 439 283 235 327 391 633 270 375 253 544 285 497 709 Hop 2 | . . . . . . . . . . . . . . . . . . . . . . . . . . . 2 . Pick Up 148 | 2 3 16 . 14 13 4 9 1 . 3 . 6 4 3 8 3 . 5 2 2 8 8 8 1 11 3 8 3 Fast Attach 176 | 6 3 9 . 4 25 5 4 . . 5 1 10 3 2 5 2 2 13 6 8 4 5 14 6 12 1 15 6 Attach 85 | . . 3 . 7 7 1 3 2 2 . . 1 2 5 2 3 . 1 2 3 6 1 2 1 9 4 11 7 Detach 20 | . . . . . 3 1 . . . 1 . . . 1 1 . 1 . . 4 . 1 . . . . 1 6 Swap 75 | . . 1 1 5 3 3 1 . 2 . 1 2 3 3 3 . . . 3 4 10 5 2 2 11 3 7 . Drop 182 | . 1 8 1 4 16 8 6 1 . 4 2 11 6 . 9 5 2 17 4 8 8 12 20 5 12 3 5 4 Fire 491 | . 24 24 8 34 11 7 25 16 37 . 5 36 20 31 13 4 . . 11 4 21 14 21 16 37 22 42 8 Melee 52 | . . . . . 29 4 . . . . . 3 1 . . . . . 6 3 1 . . . . . 5 . Ram 2 | . . . . 1 . . . . . 1 . . . . . . . . . . . . . . . . . . Kick 1 | . . . . . . . . . . . . . . . . . . . . . . . . . . . 1 . Crush 6 | . . . . . . . . . . . . . . . . . . . . . . . . . . . . 6 Escape Stasis 14 | . . . . . 14 . . . . . . . . . . . . . . . . . . . . . . . Rewire 72 | . . . . . . . . . 2 . . . . 6 . . . . . . 64 . . . . . . . Trap . | . . . . . . . . . . . . . . . . . . . . . . . . . . . . . Miscellaneous . | . . . . . . . . . . . . . . . . . . . . . . . . . . . . . Route ------- -11/Scrapyard -10/Materials -9/Materials (discovered 2 exits: [*Mat] / [*Min]) -9/Mines -8/Materials -7/Factory -7/Waste -7/Factory -7/Lower Caves -7/Lower Caves (discovered 2 exits: Fac / [*Zio]) -7/Zion -6/Proximity Caves -6/Factory (discovered 3 exits: *Fac x2 / *Low) -6/Lower Caves -6/Lower Caves -5/Factory (discovered 2 exits: *Upp x2) -5/Upper Caves -5/Upper Caves -5/Zhirov -4/Proximity Caves -4/Factory (discovered 5 exits: *Res x2 / Upp / *Ext / Arm) -4/Extension (discovered 2 exits: *Res / *Cet) -4/Cetus (discovered 2 exits: *Res / [*Arc]) -4/Archives (discovered 3 exits: *Res / *Hub x2) -4/Hub_04(d) -3/Research -2/Research -2/Testing -1/Access To Epsilon Eridani History --------- Turn | Location | Event 12 | -11/Scrapyard | Discovered new exit (range 14) 83 | -11/Scrapyard | Entered Materials 311 | -10/Materials | Build established: Mutant 476 | -10/Materials | Discovered new exit (range 4) 488 | -10/Materials | Entered another Materials area 488 | -9/Materials | Evolved 2 slots: Weapon x2 851 | -9/Materials | Discovered new exit (range 10) 853 | -9/Materials | Build established: Scavenger-Gunner 956 | -9/Materials | Discovered new exit (range 16) 1034 | -9/Materials | Entered Mines 1050 | -9/Mines | Met a Derelict bent on vengeance 1115 | -9/Mines | Destroyed 8 combat bots 1174 | -9/Mines | Discovered new exit (range 7) 1188 | -9/Mines | Assembled infested the area 1202 | -9/Mines | Entered Materials 1202 | -8/Materials | Evolved 2 slots: Utility x1, Weapon x1 1894 | -8/Materials | Garrison activated, responded to threat 2082 | -8/Materials | Discovered new exit (range 11) 2088 | -8/Materials | Released all parts (6) 2094 | -8/Materials | Entered Factory 2094 | -7/Factory | Evolved 2 slots: Propulsion x2 2118 | -7/Factory | Lost 5 parts (1p1u3w) 2366 | -7/Factory | Build established: Mutant 3105 | -7/Factory | Build established: Gunner 3160 | -7/Factory | Sucked down chute 3160 | -7/Factory | Entered Waste 3160 | -7/Waste | The area was eerily silent 3669 | -7/Waste | Discovered new exit (range 15) 3794 | -7/Waste | Entered Factory 3984 | -7/Factory | Build established: Scavenger-Tank 4287 | -7/Factory | Discovered new exit (range 6) 4349 | -7/Factory | Identified exit to Lower Caves 4387 | -7/Factory | Entered Lower Caves 4409 | -7/Lower Caves | Learned 12 Factory zone layouts 4594 | -7/Lower Caves | Build established: Tank 4808 | -7/Lower Caves | Discovered new exit (range 6) 4822 | -7/Lower Caves | Entered another Lower Caves area 4943 | -7/Lower Caves | Encountered a Warlord checkpoint 5095 | -7/Lower Caves | Attracted the attention of an 0b10 checkpoint 5135 | -7/Lower Caves | Destroyed 7 combat bots 5153 | -7/Lower Caves | Identified exit to Factory 5383 | -7/Lower Caves | Attracted the attention of an 0b10 outpost 5436 | -7/Lower Caves | Lost 3 parts (1p2w) 5454 | -7/Lower Caves | Discovered new exit (range 9) 5481 | -7/Lower Caves | Entered Zion 5481 | -7/Zion | Accompanied by 1 ally 5549 | -7/Zion | System corruption cleaned by Quarantine Array 5770 | -7/Zion | Build established: Mutant 5789 | -7/Zion | Learned Factory stockpile data 5794 | -7/Zion | Given A8's code to call for help 6229 | -7/Zion | Found CR-A16's Pointy Stick 6468 | -7/Zion | Discovered new exit (range 12) 7035 | -7/Zion | Met Imprinter 7062 | -7/Zion | Imprinted 7065 | -7/Zion | Declared Zion's savior 7252 | -7/Zion | Found GAL Module 7552 | -7/Zion | Entered Proximity Caves 7552 | -6/Proximity Caves | Accompanied by 4 allies 7709 | -6/Proximity Caves | Build established: Scavenger-Tank 7798 | -6/Proximity Caves | Discovered exit to Factory (range 3) 7803 | -6/Proximity Caves | Entered Factory 7803 | -6/Factory | Accompanied by 2 allies 7803 | -6/Factory | Evolved 2 slots: Utility x2 7804 | -6/Factory | Identified exit to Factory 8058 | -6/Factory | Retrieved Zion intel report: Component Stockpiles 8104 | -6/Factory | Discovered exit to Factory (range 6) 8104 | -6/Factory | Discovered new exit (range 17) 8239 | -6/Factory | Build established: Gunner 8248 | -6/Factory | Zion Light squad teleported in 8457 | -6/Factory | Spotted B-75 Beast 8555 | -6/Factory | Entered Lower Caves 9035 | -6/Lower Caves | Entered an active Warlord outpost 9498 | -6/Lower Caves | Discovered new exit (range 8) 9517 | -6/Lower Caves | Entered another Lower Caves area 9630 | -6/Lower Caves | Attracted the attention of an 0b10 outpost 9770 | -6/Lower Caves | Discovered exit to Factory (range 5) 9838 | -6/Lower Caves | Build established: Scavenger-Gunner 9898 | -6/Lower Caves | Learned location of 1 exit from Factory 9933 | -6/Lower Caves | Attracted the attention of an 0b10 checkpoint 9983 | -6/Lower Caves | Lost 3 parts (3w) 10085 | -6/Lower Caves | Entered Factory 10085 | -5/Factory | Evolved 2 slots: Propulsion x1, Utility x1 10086 | -5/Factory | Identified exit to Upper Caves 10213 | -5/Factory | Zion Heavy squad teleported in 10256 | -5/Factory | Discovered exit to Upper Caves (range 6) 10424 | -5/Factory | Build established: Scavenger-Tank 10547 | -5/Factory | Retrieved Zion intel report: Component Schematics 10550 | -5/Factory | Enhanced Grunt warped into view, answering call for help 10551 | -5/Factory | Enhanced Grunt warped into view, answering call for help 10632 | -5/Factory | Entered Upper Caves 10632 | -5/Upper Caves | Accompanied by 4 allies 11064 | -5/Upper Caves | Encountered a Warlord checkpoint 11133 | -5/Upper Caves | Learned 8 Factory zone layouts 11164 | -5/Upper Caves | Discovered new exit (range 3) 11179 | -5/Upper Caves | Entered another Upper Caves area 11179 | -5/Upper Caves | Accompanied by 4 allies 11459 | -5/Upper Caves | Learned 8 Factory zone layouts 11495 | -5/Upper Caves | Discovered new exit (range 15) 11515 | -5/Upper Caves | Entered Zhirov 11515 | -5/Zhirov | Accompanied by 4 allies 11518 | -5/Zhirov | Discovered new exit (range 3) 11539 | -5/Zhirov | Met Zhirov 11570 | -5/Zhirov | Found Alien Artifact 11570 | -5/Zhirov | Identified Integrated Dissipator 11570 | -5/Zhirov | Installed Integrated Dissipator, increased core heat dissipation (+20) 11641 | -5/Zhirov | Found Alien Artifact 11705 | -5/Zhirov | Zhirov requested help retrieving the SGEMP Prototype 11761 | -5/Zhirov | Learned location of Quarantine (-3) 11761 | -5/Zhirov | Learned location of Testing (-2) 11761 | -5/Zhirov | Learned location of Command (-1) 11821 | -5/Zhirov | Entered Proximity Caves 11821 | -4/Proximity Caves | Accompanied by 4 allies 11939 | -4/Proximity Caves | Spotted B-86 Titan 11993 | -4/Proximity Caves | Revealed the true nature of CR-A16's Pointy Stick 11996 | -4/Proximity Caves | Destroyed B-86 Titan 12269 | -4/Proximity Caves | Discovered new exit (range 8) 12282 | -4/Proximity Caves | Entered Factory 12282 | -4/Factory | Evolved 2 slots: Utility x1, Weapon x1 12283 | -4/Factory | Identified exit to Armory 12283 | -4/Factory | Discovered new exit (range 20) 12284 | -4/Factory | Identified exit to Upper Caves 12284 | -4/Factory | Identified exit to Research 12378 | -4/Factory | Zion hero teleported in (NK-0LA) 12592 | -4/Factory | Build established: Messiah-Executioner 12592 | -4/Factory | Spotted B-86 Titan 12612 | -4/Factory | Destroyed B-86 Titan 12738 | -4/Factory | Discovered new exit (range 6) 12782 | -4/Factory | Entered Extension 12782 | -4/Extension | Accompanied by 1 ally (NK-0LA) 12836 | -4/Extension | Rescued a captive Derelict 12841 | -4/Extension | Rescued a captive Derelict 12893 | -4/Extension | Rescued a captive Derelict 12895 | -4/Extension | Rescued a captive Derelict 12995 | -4/Extension | Rescued A7 13008 | -4/Extension | Rescued a captive Derelict 13009 | -4/Extension | Rescued a captive Derelict 13039 | -4/Extension | Zion Heavy squad teleported in 13381 | -4/Extension | Spotted B-86 Titan 13389 | -4/Extension | Spotted B-86 Titan 13399 | -4/Extension | Allies destroyed B-86 Titan 13416 | -4/Extension | Destroyed B-86 Titan 13438 | -4/Extension | Lost 5 parts (2u3w) 13467 | -4/Extension | Zion Heavy squad teleported in 13471 | -4/Extension | Zion Heavy squad teleported in 13493 | -4/Extension | Rescued a captive Derelict 13493 | -4/Extension | Rescued a captive Derelict 13597 | -4/Extension | Zion Light squad teleported in 13666 | -4/Extension | Rescued a captive Derelict 13669 | -4/Extension | Rescued a captive Derelict 13776 | -4/Extension | Discovered exit to Research (range 10) 13777 | -4/Extension | Discovered new exit (range 6) 13782 | -4/Extension | First assault squad dispatched 13790 | -4/Extension | Disrupted transfer network 13848 | -4/Extension | Entered Cetus 13848 | -4/Cetus | Accompanied by 18 allies (incl. NK-0LA, A7) 13853 | -4/Cetus | Acquired a Cetus Manufacturing Module code from A7 13861 | -4/Cetus | Spotted Cetus Guard 13861 | -4/Cetus | Spotted Cetus Guard 13861 | -4/Cetus | Spotted Cetus Guard 13861 | -4/Cetus | Spotted Cetus Guard 13870 | -4/Cetus | Destroyed Cetus Guard 13878 | -4/Cetus | Allies destroyed Cetus Guard 13879 | -4/Cetus | Destroyed Cetus Guard 13880 | -4/Cetus | Allies destroyed Cetus Guard 13909 | -4/Cetus | Lost 3 allies 13943 | -4/Cetus | Build established: Scavenger-Executioner 13998 | -4/Cetus | Started Cetus Manufacturing Module 14023 | -4/Cetus | Manufactured an Enhanced Grunt 14048 | -4/Cetus | Manufactured an Enhanced Grunt 14063 | -4/Cetus | Escorted A7 to Cetus Mainframe 14070 | -4/Cetus | Discovered new exit (range 21) 14073 | -4/Cetus | Manufactured an Enhanced Grunt 14096 | -4/Cetus | Spotted Cetus Guard 14096 | -4/Cetus | Spotted Cetus Guard 14098 | -4/Cetus | Manufactured an Enhanced Grunt 14098 | -4/Cetus | Spotted Cetus Guard 14103 | -4/Cetus | Destroyed Cetus Guard 14103 | -4/Cetus | Destroyed Cetus Guard 14103 | -4/Cetus | Allies destroyed Cetus Guard 14104 | -4/Cetus | Spotted Cetus Guard 14111 | -4/Cetus | Destroyed Cetus Guard 14116 | -4/Cetus | Discovered exit to Research (range 22) 14123 | -4/Cetus | Manufactured an Enhanced Grunt 14129 | -4/Cetus | Scared off Revision 17 14301 | -4/Cetus | Murdered A7 14306 | -4/Cetus | Extracted ID and sensor layout for unrecognized location from A7's data core 14348 | -4/Cetus | Entered Archives 14348 | -4/Archives | Accompanied by 16 allies (NK-0LA) 14372 | -4/Archives | Discovered new exit (range 22) 14389 | -4/Archives | Discovered new exit (range 21) 14394 | -4/Archives | Lost 3 allies 14610 | -4/Archives | Found Prototype Protection 14610 | -4/Archives | Identified Zio. Weapon Casing 14664 | -4/Archives | Discovered exit to Research (range 22) 14696 | -4/Archives | Found Zio. Weapon Casing 14718 | -4/Archives | System corruption reached 10% 14879 | -4/Archives | Build established: Messiah-Executioner 16123 | -4/Archives | Entered Hub_04(d) 16123 | -4/Hub_04(d) | Accompanied by 11 allies (NK-0LA) 16137 | -4/Hub_04(d) | Zion Fire squad teleported in 16389 | -4/Hub_04(d) | Discovered exit to Research (range 8) 16434 | -4/Hub_04(d) | Retrieved Zion intel report: Component Stockpiles 16435 | -4/Hub_04(d) | Zion Fire squad teleported in 16448 | -4/Hub_04(d) | Network Hub disabled 16453 | -4/Hub_04(d) | Spotted Lightning 16455 | -4/Hub_04(d) | Spotted Lightning 16455 | -4/Hub_04(d) | Spotted Lightning 16464 | -4/Hub_04(d) | Destroyed Lightning 16469 | -4/Hub_04(d) | Destroyed Lightning 16472 | -4/Hub_04(d) | Spotted Lightning 16472 | -4/Hub_04(d) | Spotted Lightning 16472 | -4/Hub_04(d) | Spotted Lightning 16479 | -4/Hub_04(d) | Entered Research 16479 | -3/Research | Evolved 2 slots: Power x1, Weapon x1 16502 | -3/Research | Lost 14 allies 16821 | -3/Research | Central database locked down 16972 | -3/Research | Discovered new exit (range 9) 17018 | -3/Research | Identified exit to Research 17227 | -3/Research | Spotted B-86 Titan 17229 | -3/Research | First assault squad dispatched 17274 | -3/Research | Entered another Research area 17274 | -2/Research | Evolved 2 slots: Propulsion x1, Utility x1 17548 | -2/Research | Zion Experimental squad teleported in 17638 | -2/Research | Garrison activated, responded to threat 17681 | -2/Research | Discovered new exit (range 9) 17706 | -2/Research | Identified exit to Testing 17707 | -2/Research | Entered Testing 17735 | -2/Testing | Lost 4 parts (1u3w) 17843 | -2/Testing | System corruption reached 10% 17883 | -2/Testing | Lost 4 parts (1p1n2w) 17971 | -2/Testing | Garrison activated, responded to threat 18023 | -2/Testing | Lost 4 parts (1p3w) 18207 | -2/Testing | First assault squad dispatched 18236 | -2/Testing | Spotted PP-M9MNN8YSUB 18243 | -2/Testing | System corruption reached 30% 18278 | -2/Testing | Released all parts (17) 18278 | -2/Testing | Identified Transdimensional Reconstructor 18278 | -2/Testing | Warped through subspace 18308 | -2/Testing | Lost 6 parts (3n3w) 18347 | -2/Testing | Core integrity fell below 50% 18362 | -2/Testing | Discovered new exit (range 16) 18375 | -2/Testing | Entered Access 18375 | -1/Access | Evolved 2 slots: Propulsion x2 18473 | -1/Access | Zion Explosive Resupply teleported in 18477 | -1/Access | Found Fusion Bomb Launcher 18479 | -1/Access | Found Fusion Bomb Launcher 18576 | -1/Access | Build established: Mutant 18636 | -1/Access | System corruption reached 10% 18649 | -1/Access | Garrison activated, responded to threat 18697 | -1/Access | Spotted B-99 Colossus 18754 | -1/Access | Spotted B-99 Colossus 18762 | -1/Access | Spotted B-99 Colossus 18807 | -1/Access | Discovered new exit (range 5) 18809 | -1/Access | Lost 5 parts (4n1u) 18815 | *** | Escaped! Last Messages --------------- 18778_ Slug penetrates Reinforced Barrier. 18778_ Penetrated by Slug. 18778_ Slug penetrates Sealed Heavy Doors. 18778_ U-05 Engineer builds a Wall. 18778_ Adv. Heavy Siege Treads destroyed. 18778_ Knocked back. 18778_ Penetrated by Slug. 18778_ Lrn. Terrain Scanner destroyed. 18778_ Slug penetrates Sealed Heavy Doors. 18778_ Penetrated by Slug. 18778_ Slug penetrates Sealed Heavy Doors. 18778_ Penetrated by Slug. 18778_ Slug penetrates Sealed Heavy Doors. 18782_ Knocked back. 18782_ Penetrated by Slug. 18788_ 5Y6SRQ555DMKGW/WC1 18807_ Main Access Shell breached. 18807_ EXIT=FOUND 18812_ Slug penetrates Main Access Shell. Map ----- +----------------------------------------------------+ | ## "" ####+### ########??????????????? | | ## "" #? # #?????????????????????? | | ! ## "" ## # % #?????????????????????? | | ## ## # #?????????????????????? | | ## ## # ##????????????????????? | | ## ! ## # "#????????????????????? | | ## ## # ##????????????????????? | | ## ## # #?????????????????????? | | ## ## # ###???????????????????? | | ## ######## ""##??????????????????? | | ## ## # %#??????????????????? | | ## # #??????????????????? | | ######## # #??????????????????# | | #???# # # #??????????????????# | | ##### # %#??????????????????# | | ## # %#??????????????????# | | /###### ## #??????????????????# | | " #""""""""%"#??????????????????# | | # #???????" %#??????????????????? | | # " #???????" "#??????????????????? | | #### # "" ##"""""""" "#??????????????????? | | ???# # """""" ### #??????????????????? | | ???# # """""" #?# """"" #??????????????????? | | ???# # "" #?# " #?????????????#????? | | ???# # "" #?# "" " #???????????#??????? | | ???# # #?# "@ " #?????????? ????? | | ???# # = #?# " #??? ?? ?? #???? | | ???+ / #?# h""""" #?# ??? #???? | | ???# # #?# #?# ?? #???? | | ???# # #?# #?#"""""" #???? | | #### ############?""""""""""""?#"""""" #???? | | #?????#"" #?# "" #???? | | #?????#"" #?# "" #???? | | #?????#"" #?# ?????? | | ##T #?# ???????? | | #"" #?# ?????????? | | ! #"" #?? ???????????? | | * ##"" #####+############## | | "" "" %! |%= | | ""G"" % %% = | | ####+#### ##################+############## | | ????????? ???????????????? ???????#?? | | ?????????? ????????????????# ???? # | | ??????????? ? ????????????????# ???? | | ????????????????????????????????# ?? | | ????????????????????????????????# " # | | ????????????????????????????????# """ # | | ????????????????????????????????# """ # " | | ????????????????????????????????# " # | | ????????????????????????????????# ? # | +----------------------------------------------------+ Best States ------------- Heat Dissipation 125 Energy Generation 43 Energy Capacity 590 Matter Stores 300 Matter Capacity 300 Sight Range 22 Robot Scan Range 16 Terrain Scan Range 24 Terrain Scan Density 10 Jamming Range 12 Base Temperature (-) 150 Armor Coverage 225 Resistance: TH 25 Utility Shielding 66 Weapon Shielding 100 Weapon Cycling 20 Evasion (%) 80 Targeting Accuracy 8 Core Analysis 9 Recoil Reduction 4 Offensive Hacking 10 Item Schematics ----------------- Aerolev Unit | -7/Factory | Scanalyzed Lyr. Light Armor Plating | -7/Zion | Archive Enh. Optical Array | -7/Zion | Archive Plasma Rifle | -7/Zion | Archive Adv. Assault Cannon | -7/Zion | Archive Angular Momentum Engine | -7/Zion | Archive Imp. Salvage Targeting Computer | -7/Zion | Archive KE Penetrator | -7/Zion | Archive Field Propulsion Drive | -7/Zion | Archive Core Analyzer | -7/Zion | Archive Matter Compressor | -7/Zion | Archive Imp. Actuator Array | -7/Zion | Archive Imp. Titanium Leg | -7/Zion | Archive Imp. Particle Charger | -7/Zion | Archive Gauss Cannon | -7/Zion | Archive Imp. KE Penetrator | -7/Zion | Archive Imp. Shield Generator | -5/Factory | Z-intel Recalibrator | -5/Factory | Z-intel Hvy. Pick | -5/Factory | Z-intel Imp. Utility Shielding | -5/Factory | Z-intel Adv. ECM Suite | -5/Factory | Z-intel Power Sword | -5/Factory | Z-intel Adv. Trap Extractor | -5/Factory | Z-intel Mass Driver | -5/Factory | Z-intel Com. Battery | -5/Factory | Z-intel Phase Cannon | -5/Factory | Z-intel Core Shielding | -5/Factory | Z-intel Adv. Cooling System | -5/Factory | Z-intel Imp. Medium Treads | -5/Factory | Z-intel Exp. Heat Sink | -5/Zhirov | Free Assault Drone Bay | -5/Zhirov | Free Exp. Optical Array | -5/Zhirov | Free Imp. Arc Thrower | -5/Zhirov | Free Robot Schematics ------------------ A-02 Transporter | -7/Zion | Archive G-47 Trooper | -7/Zion | Archive L-31 Rogue | -7/Zion | Archive Fabricated ------------ Nothing Repaired ---------- Nothing Studied --------- Railgun | -3/Research | Hacked Alien Tech Used ----------------- Integrated Dissipator Transdimensional Reconstructor Achievements -------------- None Challenges ------------ None Game ------ Seed SalvageBiocellMiniperforator Manual? 0 Play Time 01:59:52 Cumulative 432.7 hours Start 2026.02.12 @ 20:14:11 End 2026.02.14 @ 16:40:12 Sessions 5 Manual Loads 0 Difficulty Rogue Special Mode None Game No. 389 Rogue 353 Adventurer 36 Explorer 0 Win Type 0 Total 18 Types 9/0/9/0/0/0/0/0/0/0 Lore% 72 Gallery% 82 Achievement% 65 Wizard Run 0 Options --------- Layout 0 ASCII 0 Keyboard 0 Movement Mouse Keybinds 0 Fullscreen 1 Font 18/SmallcapsGlow Map View 76x50 Zoom Use 0% Tactical HUD 1 Map Filters NONE Filters NONE Steam 1 RUN: 4c278654-9f9a-40ac-969c-ad2b104794f6